lending/lending_fUSD_20260119
["ID","MTS","AMOUNT","RATE_DAILY","PERIOD"]
[402730694,1768857038972,-1834.34,0.00017,2]
[402730695,1768857038982,-1834.34,0.00017,2]
[402730696,1768857038992,-1834.34,0.00017,2]
[402730697,1768857039002,-1834.34,0.00017,2]
[402730698,1768857039014,-1834.34,0.00017,2]
[402730699,1768857039025,-466.0,0.00017008,2]
[402730700,1768857039035,-1500.0,0.00017028,2]
[402730701,1768857039045,-259.78,0.00017036,2]
[402730702,1768857039055,-190.93,0.00017056,2]
[402730703,1768857039065,-500.0,0.0001708,2]
[402730704,1768857039075,-200.0,0.000171,2]
[402730705,1768857039085,-466.0,0.00017161,2]
[402730706,1768857039096,-466.0,0.00017181,2]
[402730707,1768857039106,-466.0,0.00017181,2]
[402730708,1768857039117,-755.91,0.00017218,2]
[402730709,1768857039127,-533.88981491,0.00017238,2]
[402730710,1768857039137,-174.61919142,0.00017238,2]
[402730711,1768857039147,-232.61690244,0.00017238,2]
[402730712,1768857039158,-300.0,0.00017357,2]
[402730713,1768857039169,-466.0,0.00017426,2]
[402730714,1768857039179,-396.15176334,0.00017468,2]
[402730715,1768857039189,-267.0,0.00017488,2]
[402730716,1768857039199,-755.91,0.00017492,2]
[402730717,1768857039210,-179.49,0.00017558,2]
[402730718,1768857039220,-4400.04912732,0.00017561,2]
[402730719,1768857039231,-267.0,0.00017598,2]
[402730720,1768857039241,-1042.0,0.00017618,2]
[402730721,1768857039251,-200.0,0.00017639,2]
[402730722,1768857039261,-752.93839828,0.0001764,2]
[402730723,1768857039271,-195.0,0.00017678,2]
[402730724,1768857039282,-250.0,0.00017678,2]
[402730725,1768857039291,-300.0,0.00017678,2]
[402730726,1768857039301,-600.0,0.00017678,2]
[402730727,1768857039311,-5000.0,0.00017678,2]
[402730728,1768857039321,-150.09805643,0.00017678,2]
[402730729,1768857039331,-235.41480451,0.00017678,2]
[402730730,1768857039340,-195.0,0.00017678,2]
[402730731,1768857039350,-150.0,0.00017683,2]
[402730732,1768857039360,-500.0,0.00017683,2]
[402730733,1768857039370,-150.0,0.00017683,2]
[402730734,1768857039379,-500.0,0.00017683,2]
[402730735,1768857039389,-150.0,0.00017683,2]
[402730736,1768857039401,-150.0,0.00017683,2]
[402730737,1768857039411,-267.0,0.00017693,2]
[402730738,1768857039420,-500.0,0.00017726,7]
[402730739,1768857039429,-1800.0,0.00017726,7]
[402730740,1768857039439,-800.0,0.00017726,7]
[402730741,1768857039450,-1680.0,0.00017731,2]
[402730742,1768857039461,-500.0,0.00017738,2]
[402730743,1768857039471,-150.0,0.00017738,2]
[402730744,1768857039481,-500.0,0.00017738,2]
[402730745,1768857039491,-150.0,0.00017738,2]
[402730746,1768857039500,-150.0,0.00017738,2]
[402730747,1768857039511,-267.0,0.00017754,2]
[402730748,1768857039521,-755.93276109,0.00017766,2]
[402730749,1768857039531,-553.64373807,0.00017786,2]
[402730750,1768857039542,-500.0,0.00017793,2]
[402730751,1768857039552,-150.0,0.00017793,2]
[402730752,1768857039561,-500.0,0.00017793,2]
[402730753,1768857039571,-150.0,0.00017793,2]
[402730755,1768857039580,-2000.0,0.000178,2]
[402730756,1768857039589,-1000.0,0.000178,2]
[402730759,1768857039598,-500.0,0.00017808,2]
[402730760,1768857039608,-267.0,0.00017812,2]
[402730761,1768857039617,-1042.0,0.00017829,2]
[402730762,1768857039626,-267.0,0.00017835,2]
[402730763,1768857039635,-500.0,0.00017847,2]
[402730764,1768857039644,-200.0,0.00017856,2]
[402730765,1768857039653,-267.0,0.0001786,2]
[402730766,1768857039663,-1000.0,0.000179,2]
[402730767,1768857039672,-1626.07932567,0.000179,2]
[402730768,1768857039681,-323.51281498,0.00017902,2]
[402730769,1768857039690,-690.75,0.00017972,2]
[402730770,1768857039699,-500.0,0.00017973,2]
[402730771,1768857039708,-500.0,0.00017973,2]
[402730772,1768857039718,-809.80690528,0.00017982,2]
[402730773,1768857039727,-1051.62,0.00017989,2]
[402730774,1768857039742,-153.95898556,0.0001799,2]
[402730775,1768857039751,-151.0,0.00017997,2]
[402730776,1768857039760,-151.0,0.00017997,2]
[402730777,1768857039769,-151.0,0.00017997,2]
[402730778,1768857039778,-57620.0423738,0.00017998,2]
[402730779,1768857039788,-169067.8794411,0.00017998,2]
[402730780,1768857039797,-221580.411528,0.00017998,2]
[402730781,1768857039808,-1322.9513969,0.00017998,2]
[402730782,1768857039817,-251.41764929,0.00017999,2]
[402730783,1768857039827,-182.044,0.00017999,2]
[402730784,1768857039836,-500.0,0.00017999,2]
[402730785,1768857039845,-500.60631611,0.00017999,2]
[402730786,1768857039855,-500.0,0.00017999,2]
[402730787,1768857039864,-500.0,0.00017999,2]
[402730788,1768857039873,-209.47,0.00017999,2]
[402730789,1768857039883,-500.0,0.00017999,2]
[402730790,1768857039892,-500.0,0.00017999,2]
[402730791,1768857039901,-500.0,0.00017999,2]
[402730792,1768857039911,-155.0,0.00017999,2]
[402730793,1768857039920,-2333.0,0.00018,2]
[402730794,1768857039929,-54059.6858358,0.00018,2]
[402730795,1768857039938,-1447743.58294071,0.00018,2]
[402730796,1768857039955,-1282.2401957,0.00018,2]
[402730797,1768857039970,-499.092,0.00018,2]
[402730801,1768857041887,-325.47403664,0.00018,2]
[402730802,1768857041898,-1790.09687237,0.00018,2]
[402730803,1768857041909,-440485.872712,0.00018,2]
[402730804,1768857041928,-87798.13644958,0.00018,2]
[402730805,1768857041939,-25751.98746626,0.00018,2]
[402730806,1768857041960,-4314.1106964,0.00018,2]
[402730807,1768857041972,-180491.86233245,0.00018,2]
[402730808,1768857042006,-573.674504,0.00018,2]
[402730809,1768857042016,-2844.38117972,0.00018,2]
[402730810,1768857042027,-10045.45113752,0.00018,2]
[402730811,1768857042059,-521334.58904988,0.00018,2]
[402730812,1768857042068,-1239.49,0.00018,7]
[402730813,1768857042078,-150.0,0.00018,2]
[402730814,1768857042088,-1416.57077004,0.00018,2]
[402730815,1768857042098,-150.0,0.00018,2]
[402730816,1768857042107,-6754.64589002,0.00018,2]
[402730817,1768857042116,-150.0,0.00018,2]
[402730818,1768857042127,-888.19576499,0.00018,2]
[402730819,1768857042137,-151.0,0.00018,2]
[402730820,1768857042146,-22065.60105056,0.00018,3]
[402730821,1768857042155,-151.0,0.00018,2]
[402730822,1768857042165,-151.0,0.00018,2]
[402730823,1768857042174,-151.0,0.00018,2]
[402730824,1768857042183,-151.0,0.00018,2]
[402730825,1768857042192,-151.0,0.00018,2]
[402730826,1768857042202,-151.0,0.00018,2]
[402730827,1768857042211,-151.0,0.00018,2]
[402730828,1768857042220,-151.0,0.00018,2]
[402730829,1768857042229,-1005.53682034,0.00018,2]
[402730830,1768857042239,-151.0,0.00018,2]
[402730831,1768857042248,-151.0,0.00018,2]
[402730832,1768857042257,-151.0,0.00018,2]
[402730833,1768857042266,-151.0,0.00018,2]
[402730834,1768857042275,-151.0,0.00018,2]
[402730835,1768857042285,-151.0,0.00018,2]
[402730836,1768857042295,-151.0,0.00018,2]
[402730837,1768857042304,-151.0,0.00018,2]
[402730838,1768857042313,-151.0,0.00018,2]
[402730839,1768857042322,-151.0,0.00018,2]
[402730840,1768857042331,-151.0,0.00018,2]
[402730841,1768857042341,-151.0,0.00018,2]
[402730843,1768857042350,-151.0,0.00018,2]
[402730844,1768857042360,-151.0,0.00018,2]
[402730845,1768857042369,-151.0,0.00018,2]
[402730846,1768857042378,-151.0,0.00018,2]
[402730847,1768857042387,-151.0,0.00018,2]
[402730848,1768857042396,-151.0,0.00018,2]
[402730849,1768857042406,-151.0,0.00018,2]
[402730850,1768857042415,-151.0,0.00018,2]
[402730851,1768857042423,-151.0,0.00018,2]
[402730852,1768857042432,-151.0,0.00018,2]
[402730853,1768857042441,-151.0,0.00018,2]
[402730854,1768857042451,-151.0,0.00018,2]
[402730855,1768857042460,-151.0,0.00018,2]
[402730856,1768857042469,-151.0,0.00018,2]
[402730857,1768857042478,-151.0,0.00018,2]
[402730858,1768857042487,-1264.0,0.00018,2]
[402730859,1768857042497,-151.0,0.00018,2]
[402730860,1768857042506,-151.0,0.00018,2]
[402730861,1768857042515,-1264.0,0.00018,2]
[402730862,1768857042525,-1264.0,0.00018,2]
[402730863,1768857042534,-151.0,0.00018,2]
[402730864,1768857042544,-1264.0,0.00018,2]
[402730865,1768857042553,-151.0,0.00018,2]
[402730866,1768857042563,-1264.0,0.00018,2]
[402730868,1768857042572,-151.0,0.00018,2]
[402730869,1768857042581,-1264.0,0.00018,2]
[402730870,1768857042591,-151.0,0.00018,2]
[402730871,1768857042600,-151.0,0.00018,2]
[402730872,1768857042610,-1264.0,0.00018,2]
[402730873,1768857042619,-1264.0,0.00018,2]
[402730874,1768857042628,-151.0,0.00018,2]
[402730875,1768857042638,-1264.0,0.00018,2]
[402730876,1768857042647,-151.0,0.00018,2]
[402730878,1768857042656,-1264.0,0.00018,2]
[402730879,1768857042665,-151.0,0.00018,2]
[402730880,1768857042674,-151.0,0.00018,2]
[402730881,1768857042683,-151.0,0.00018,2]
[402730882,1768857042693,-1264.0,0.00018,2]
[402730883,1768857042702,-1264.0,0.00018,2]
[402730884,1768857042711,-1264.0,0.00018,2]
[402730885,1768857042720,-1264.0,0.00018,2]
[402730886,1768857042730,-3370.8128447,0.00018,2]
[402730887,1768857042742,-1264.0,0.00018,2]
[402730888,1768857042752,-151.0,0.00018,2]
[402730889,1768857042762,-152.0,0.00018,2]
[402730890,1768857042772,-151.0,0.00018,2]
[402730891,1768857042782,-151.0,0.00018,2]
[402730892,1768857042792,-298.82073692,0.00018,2]
[402730893,1768857042801,-151.0,0.00018,2]
[402730894,1768857042811,-14308.24200541,0.00018,3]
[402730895,1768857042820,-151.0,0.00018,2]
[402730896,1768857042830,-151.0,0.00018,2]
[402730897,1768857042839,-221.93280649,0.00018,2]
[402730898,1768857042848,-151.0,0.00018,2]
[402730899,1768857042857,-151.0,0.00018,2]
[402730900,1768857042867,-1264.0,0.00018,2]
[402730901,1768857042876,-1264.0,0.00018,2]
[402730902,1768857042886,-151.0,0.00018,2]
[402730903,1768857042895,-1264.0,0.00018,2]
[402730904,1768857042904,-151.0,0.00018,2]
[402730905,1768857042913,-151.0,0.00018,2]
[402730906,1768857042923,-1000.0,0.00018,2]
[402730907,1768857042932,-1000.0,0.00018,2]
[402730908,1768857042941,-1000.0,0.00018,2]
[402730909,1768857042951,-1000.0,0.00018,2]
[402730910,1768857042960,-1000.0,0.00018,2]
[402730911,1768857042969,-1000.0,0.00018,2]
[402730912,1768857042979,-1000.0,0.00018,2]
[402730919,1768857043301,-1000.0,0.00018,2]
[402730920,1768857043336,-1000.0,0.00018,2]
[402730921,1768857043346,-1040.72,0.00018,2]
[402730922,1768857043355,-151.0,0.00018,2]
[402730923,1768857043364,-151.0,0.00018,2]
[402730924,1768857043374,-1264.0,0.00018,2]
[402730925,1768857043383,-1000.0,0.00018,2]
[402730926,1768857043392,-1000.0,0.00018,2]
[402730927,1768857043401,-1000.0,0.00018,2]
[402730928,1768857043411,-1000.0,0.00018,2]
[402730929,1768857043420,-185.24,0.00018,2]
[402730930,1768857043430,-151.0,0.00018,2]
[402730931,1768857043439,-151.0,0.00018,2]
[402730932,1768857043448,-163.41258495,0.00018,2]
[402730933,1768857043457,-151.0,0.00018,2]
[402730934,1768857043467,-1264.0,0.00018,2]
[402730935,1768857043476,-151.0,0.00018,2]
[402730936,1768857043485,-1264.0,0.00018,2]
[402730937,1768857043495,-151.0,0.00018,2]
[402730938,1768857043504,-1264.0,0.00018,2]
[402730939,1768857043513,-151.0,0.00018,2]
[402730940,1768857043523,-1264.0,0.00018,2]
[402730941,1768857043533,-500.0,0.00018,2]
[402730942,1768857043543,-500.0,0.00018,2]
[402730943,1768857043552,-500.0,0.00018,2]
[402730944,1768857043562,-500.0,0.00018,2]
[402730945,1768857043571,-500.0,0.00018,2]
[402730946,1768857043580,-500.0,0.00018,2]
[402730947,1768857043590,-500.0,0.00018,2]
[402730948,1768857043600,-500.0,0.00018,2]
[402730949,1768857043610,-500.0,0.00018,2]
[402730950,1768857043619,-500.0,0.00018,2]
[402730951,1768857043629,-500.0,0.00018,2]
[402730952,1768857043639,-500.0,0.00018,2]
[402730953,1768857043649,-500.0,0.00018,2]
[402730954,1768857043658,-500.0,0.00018,2]
[402730955,1768857043667,-500.0,0.00018,2]
[402730956,1768857043677,-500.0,0.00018,2]
[402730957,1768857043686,-500.0,0.00018,2]
[402730958,1768857043695,-500.0,0.00018,2]
[402730959,1768857043705,-500.0,0.00018,2]
[402730960,1768857043714,-500.0,0.00018,2]
[402730961,1768857043724,-500.0,0.00018,2]
[402730962,1768857043736,-500.0,0.00018,2]
[402730963,1768857043748,-500.0,0.00018,2]
[402730964,1768857043761,-500.0,0.00018,2]
[402730965,1768857043772,-500.0,0.00018,2]
[402730966,1768857043781,-500.0,0.00018,2]
[402730967,1768857043791,-500.0,0.00018,2]
[402730968,1768857043801,-500.0,0.00018,2]
[402730969,1768857043811,-500.0,0.00018,2]
[402730970,1768857043828,-500.0,0.00018,2]
[402730971,1768857043848,-1264.0,0.00018,2]
[402730972,1768857043857,-1264.0,0.00018,2]
[402730973,1768857043867,-200.0,0.00018,2]
[402730974,1768857043877,-2000.0,0.00018,2]
[402730975,1768857043886,-500.0,0.00018,2]
[402730976,1768857043896,-500.0,0.00018,2]
[402730977,1768857043905,-500.0,0.00018,2]
[402730978,1768857043915,-581.0,0.00018,2]
[402730979,1768857043924,-300.0,0.00018,2]
[402730980,1768857043933,-606.37919142,0.00018,2]
[402730981,1768857043943,-151.0,0.00018,2]
[402730982,1768857043953,-981.0,0.00018,2]
[402730983,1768857043963,-2138.40119291,0.00018,2]
[402730984,1768857043972,-151.0,0.00018,2]
[402730985,1768857043983,-151.0,0.00018,2]
[402730986,1768857043993,-151.0,0.00018,2]
[402730987,1768857044003,-200.0,0.00018,2]
[402730988,1768857044014,-151.0,0.00018,2]
[402730989,1768857044024,-307.0,0.00018,2]
[402730990,1768857044034,-1263.99158099,0.00018,2]
[402730991,1768857044044,-34334.25663523,0.00018,2]
[402730992,1768857044054,-1101.0,0.00018021,2]
[402730993,1768857044064,-1042.0,0.0001804,2]
[402730994,1768857044074,-933.15,0.00018043,2]
[402730995,1768857044084,-322.6107,0.00018059,2]
[402730996,1768857044094,-620.0,0.00018059,2]
[402730997,1768857044104,-4444.0,0.00018059,2]
[402730998,1768857044114,-510.0,0.00018082,2]
[402730999,1768857044124,-1777.58781841,0.000181,2]
[402731000,1768857044135,-200.0,0.000181,2]
[402731001,1768857044144,-200.0,0.000181,2]
[402731002,1768857044154,-150.0,0.000181,2]
[402731003,1768857044163,-150.381,0.000181,2]
[402731004,1768857044175,-150.0,0.000181,2]
[402731005,1768857044184,-171.292,0.000181,2]
[402731006,1768857044194,-297.611,0.000181,2]
[402731007,1768857044203,-150.193,0.000181,2]
[402731008,1768857044212,-150.0,0.000181,2]
[402731009,1768857044222,-150.0,0.000181,2]
[402731010,1768857044237,-150.044,0.000181,2]
[402731011,1768857044246,-150.0,0.000181,2]
[402731012,1768857044256,-615.0,0.000181,2]
[402731013,1768857044265,-1332.0,0.000181,2]
[402731014,1768857044275,-3473.0,0.000181,2]
[402731015,1768857044285,-1268.0,0.000181,2]
[402731016,1768857044294,-342.0,0.000181,2]
[402731017,1768857044304,-1202.0,0.000181,2]
[402731018,1768857044314,-915.0,0.000181,2]
[402731019,1768857044323,-4826.0,0.000181,2]
[402731020,1768857044332,-2440.0,0.000181,2]
[402731021,1768857044342,-6562.0,0.000181,2]
[402731022,1768857044351,-662.74,0.0001814,2]
[402731023,1768857044361,-267.0,0.00018154,2]
[402731024,1768857044370,-2000.0,0.000182,2]
[402731025,1768857044379,-267.0,0.00018208,2]
[402731026,1768857044388,-267.0,0.00018219,2]
[402731027,1768857044398,-166.67,0.00018227,2]
[402731028,1768857044408,-1042.0,0.00018251,2]
[402731029,1768857044417,-184.87505214,0.00018261,3]
[402731030,1768857044427,-852.93787994,0.00018261,2]
[402731031,1768857044437,-1000.0,0.000183,2]
[402731032,1768857044446,-574.12855637,0.00018334,2]
[402731033,1768857044455,-166.66,0.00018338,2]
[402731034,1768857044464,-678.57,0.00018343,2]
[402731035,1768857044474,-88373.43,0.00018356,2]
[402731036,1768857044483,-314.0,0.00018361,2]
[402731037,1768857044492,-2000.0,0.000184,2]
[402731038,1768857044501,-1042.0,0.00018462,2]
[402731039,1768857044511,-267.0,0.00018468,2]
[402731040,1768857044520,-267.0,0.00018477,2]
[402731041,1768857044529,-179.49,0.00018482,2]
[402731042,1768857044538,-314.0,0.000185,2]
[402731043,1768857044547,-174.2,0.000185,2]
[402731044,1768857044557,-314.0,0.00018512,2]
[402731045,1768857044566,-1000.0,0.00018521,2]
[402731046,1768857044576,-1000.0,0.00018521,2]
[402731047,1768857044585,-267.0,0.00018538,2]
[402731048,1768857044595,-1600.0,0.00018562,2]
[402731049,1768857044605,-314.0,0.0001858,2]
[402731050,1768857044614,-2000.0,0.000186,2]
[402731051,1768857044624,-933.15,0.00018672,2]
[402731052,1768857044633,-1042.0,0.00018673,2]
[402731053,1768857044643,-259.78,0.0001874,2]
[402731054,1768857044652,-267.0,0.00018745,2]
[402731055,1768857044662,-314.0,0.00018764,2]
[402731056,1768857044671,-2000.0,0.000188,2]
[402731057,1768857044681,-151.28,0.000188,2]
[402731058,1768857044696,-151.28,0.000188,2]
[402731059,1768857044706,-151.28,0.000188,2]
[402731060,1768857044715,-151.28,0.000188,2]
[402731061,1768857044724,-151.28,0.000188,2]
[402731062,1768857044734,-151.28,0.000188,2]
[402731063,1768857044746,-151.28,0.000188,2]
[402731064,1768857044756,-151.28,0.000188,2]
[402731065,1768857044766,-151.28,0.000188,2]
[402731066,1768857044776,-151.28,0.000188,2]
[402731067,1768857044786,-151.28,0.000188,2]
[402731068,1768857044796,-151.28,0.000188,2]
[402731069,1768857044806,-151.28,0.000188,2]
[402731070,1768857044815,-151.28,0.000188,2]
[402731071,1768857044825,-151.28,0.000188,2]
[402731072,1768857044837,-151.28,0.000188,2]
[402731073,1768857044850,-151.28,0.000188,2]
[402731074,1768857044860,-151.28,0.000188,2]
[402731075,1768857044869,-151.28,0.000188,2]
[402731076,1768857044878,-151.28,0.000188,2]
[402731077,1768857044887,-151.28,0.000188,2]
[402731078,1768857044897,-151.28,0.000188,2]
[402731079,1768857044907,-151.28,0.000188,2]
[402731080,1768857044916,-151.28,0.000188,2]
[402731081,1768857044925,-151.28,0.000188,2]
[402731082,1768857044935,-151.28,0.000188,2]
[402731083,1768857044944,-151.28,0.000188,2]
[402731084,1768857044953,-151.28,0.000188,2]
[402731085,1768857044962,-151.28,0.000188,2]
[402731086,1768857044972,-151.28,0.000188,2]
[402731087,1768857044981,-190.93,0.00018806,2]
[402731088,1768857044991,-1800.0,0.00018822,7]
[402731089,1768857045000,-800.0,0.00018822,7]
[402731090,1768857045010,-1000.0,0.0001886,2]
[402731091,1768857045020,-4400.04912732,0.00018882,6]
[402731092,1768857045030,-595.37131296,0.00018882,2]
[402731093,1768857045039,-1042.0,0.00018885,2]
[402731094,1768857045048,-1000.0,0.000189,2]
[402731095,1768857045067,-225.86317806,0.000189,2]
[402731096,1768857045087,-1101.0,0.00018922,2]
[402731097,1768857045105,-163.02902639,0.00018973,2]
[402731098,1768857045124,-314.0,0.00018976,2]
[402731099,1768857045142,-761.74,0.00018989,2]
[402731100,1768857045159,-151.0,0.00018997,2]
[402731101,1768857045177,-300.0,0.00018999,2]
[402731102,1768857045197,-300.0,0.00018999,2]
[402731103,1768857045217,-2173.12079,0.00019,30]
[402731104,1768857045235,-150.0,0.00019,2]
[402731105,1768857045255,-150.0,0.00019,2]
[402731106,1768857045275,-150.0,0.00019,2]
[402731107,1768857045288,-150.0,0.00019,2]
[402731108,1768857045307,-150.0,0.00019,2]
[402731109,1768857045320,-5164.63507325,0.00019,2]
[402731110,1768857045340,-150.0,0.00019,2]
[402731111,1768857045353,-150.0,0.00019,2]
[402731112,1768857045367,-347144.21684099,0.00019,2]
[402731113,1768857045385,-300.0,0.00019,2]
[402731114,1768857045401,-784.93203806,0.00019,2]
[402731115,1768857045432,-3050.01018689,0.00019,2]
[402731116,1768857045449,-2000.0,0.00019,2]
[402731117,1768857045464,-150.0,0.00019,2]
[402731118,1768857045480,-162.79919715,0.00019,2]
[402731119,1768857045497,-150.0,0.00019,2]
[402731120,1768857045513,-150.0,0.00019,2]
[402731121,1768857045530,-150.0,0.00019,2]
[402731122,1768857045546,-150.0,0.00019,2]
[402731123,1768857045562,-310.23450831,0.00019,2]
[402731124,1768857045577,-150.0,0.00019,2]
[402731125,1768857045592,-150.0,0.00019,2]
[402731126,1768857045607,-150.0,0.00019,2]
[402731127,1768857045622,-150.0,0.00019,2]
[402731128,1768857045638,-150.0,0.00019,2]
[402731129,1768857045653,-150.0,0.00019,2]
[402731130,1768857045667,-150.0,0.00019,2]
[402731131,1768857045683,-150.0,0.00019,2]
[402731132,1768857045698,-150.0,0.00019,2]
[402731133,1768857045713,-150.0,0.00019,2]
[402731134,1768857045728,-180.0,0.00019036,2]
[402731135,1768857045746,-619.61189546,0.00019068,2]
[402731136,1768857045761,-714.9044405,0.00019068,2]
[402731137,1768857045776,-300.0,0.00019074,2]
[402731138,1768857045791,-222.97946918,0.00019082,2]
[402731139,1768857045807,-1042.0,0.00019096,2]
[402731140,1768857045822,-678.57,0.00019177,2]
[402731141,1768857045837,-500.0,0.00019178,2]
[402731142,1768857045852,-500.0,0.00019178,2]
[402731143,1768857045867,-500.0,0.00019178,2]
[402731144,1768857045882,-500.0,0.00019178,2]
[402731145,1768857045897,-500.0,0.00019178,2]
[402731146,1768857045912,-500.0,0.00019178,2]
[402731147,1768857045926,-371.76360524,0.00019178,2]
[402731149,1768857045942,-500.0,0.00019178,2]
[402731150,1768857045956,-500.0,0.00019178,2]
[402731151,1768857045971,-500.0,0.00019178,2]
[402731152,1768857045987,-500.0,0.00019178,2]
[402731154,1768857046002,-500.0,0.00019178,2]
[402731155,1768857046016,-500.0,0.00019178,2]
[402731156,1768857046031,-500.0,0.00019178,2]
[402731157,1768857046047,-500.0,0.00019178,2]
[402731158,1768857046062,-500.0,0.00019178,2]
[402731159,1768857046077,-500.0,0.00019178,2]
[402731160,1768857046093,-150.71801589,0.00019178,2]
[402731161,1768857046108,-1267.48,0.00019178,30]
[402731162,1768857046123,-263.0248647,0.00019178,2]
[402731163,1768857046138,-162.79919715,0.00019243,2]
[402731164,1768857046152,-310.23450831,0.00019243,2]
[402731165,1768857046168,-150.0,0.00019262,2]
[402731166,1768857046182,-761.74,0.00019263,2]
[402731167,1768857046198,-150.0,0.00019277,2]
[402731168,1768857046213,-1626.07932564,0.00019286,2]
[402731169,1768857046229,-166.66,0.00019294,2]
[402731170,1768857046243,-933.15,0.00019302,2]
[402731171,1768857046258,-150.0,0.00019305,2]
[402731172,1768857046272,-1042.0,0.00019307,2]
[402731173,1768857046288,-150.0,0.00019309,2]
[402731174,1768857046303,-690.75,0.00019342,2]
[402731175,1768857046320,-150.0,0.00019349,2]
[402731176,1768857046336,-179.49,0.00019406,2]
[402731177,1768857046353,-4444.0,0.00019428,2]
[402731178,1768857046368,-721.12765534,0.00019429,2]
[402731179,1768857046382,-617.40005154,0.0001943,2]
[402731180,1768857046397,-200.0,0.00019468,2]
[402731181,1768857046412,-259.78,0.00019479,2]
[402731182,1768857046427,-2100.0,0.00019481,2]
[402731183,1768857046442,-162.79919715,0.00019486,2]
[402731184,1768857046457,-310.23450831,0.00019486,2]
[402731185,1768857046471,-1042.0,0.00019518,2]
[402731186,1768857046486,-150.0,0.00019523,2]
[402731187,1768857046501,-761.74,0.00019537,2]
[402731188,1768857046515,-150.0,0.00019553,2]
[402731189,1768857046530,-190.93,0.00019572,2]
[402731190,1768857046544,-150.0,0.0001961,2]
[402731191,1768857046559,-166.67,0.00019617,2]
[402731192,1768857046572,-150.0,0.00019617,2]
[402731193,1768857046587,-150.0,0.00019688,2]
[402731194,1768857046605,-150.0,0.00019698,2]
[402731195,1768857046619,-150.0,0.00019708,2]
[402731196,1768857046635,-1042.0,0.00019729,2]
[402731197,1768857046651,-162.79919715,0.0001973,2]
[402731198,1768857046666,-310.23450831,0.0001973,2]
[402731199,1768857046683,-150.0,0.00019785,2]
[402731200,1768857046698,-155.0,0.00019799,2]
[402731201,1768857046714,-761.74,0.00019811,2]
[402731202,1768857046728,-150.0,0.0001983,2]
[402731203,1768857046747,-1101.0,0.00019868,2]
[402731204,1768857046763,-150.0,0.00019914,2]
[402731205,1768857046776,-1800.0,0.00019918,7]
[402731206,1768857046791,-800.0,0.00019918,7]
[402731207,1768857046806,-500.0,0.00019918,7]
[402731208,1768857046821,-150.0,0.00019926,2]
[402731209,1768857046837,-150.0,0.00019926,2]
[402731210,1768857046852,-500.0,0.00019939,2]